{"text_format":"1","workbook":"xlsx","n_sheets":2,"sheets":["لوحة التحكم","الاختبار"],"not_rendered":{"charts":0,"images":0,"macros":1,"external_links":0,"defined_names":1,"comments":1,"pivot_tables":0},"unopened":[],"bounds":{"document_bytes":16777216,"sheet_cells":100000,"rows_first":2000,"rows_last":500,"rows_between":2000,"halvings":0,"cell_chars":16384,"cell_head_chars":4096},"cells_cut":0,"cells_raw":0,"read":"whole","date_system":"1900"}

{"sheet":"لوحة التحكم","index":0,"n_rows":52,"n_cols":40,"rows_kept":52,"cut":false,"hidden":false,"merged":[[0,0,0,6],[0,10,0,12],[0,15,0,26],[0,29,0,32]]}
["أسئلة مادة القرآن للصف الأول",null,null,null,null,null,null,null,"نعم",null,"التحكم",null,null,null,null,"نتيجة الاختبار",null,null,null,null,null,null,null,null,null,null,null,null,null,"الطلاب",null,null,null,null,null,null,null,6,null,14]
["م","الاسم","الاختيار 1","الاختيار 2","الاختيار 3","الاختيار 4","الإجابة",null,"لا",null,"المهمة","الاختيار","التفصيل",null,null,"الرقم","التاريخ","البداية","النهاية","الزمن المستغرق","اسم المتسابق","الصف","المادة","الأسئلة","صائبة","خاطئة","النسبة",null,null,"الرقم","الاسم","الصف","المادة",null,null,null,null,null,null,6]
[1,"من هو الصديق ؟","عمر بن الخطاب","عثمان بن عفان","أبو بكر – عبد الله بن قحافة","علي بن أبي طالب",3,{"$f":"OFFSET(B3,0,G3)","v":"أبو بكر – عبد الله بن قحافة"},null,null,"أقصى مدة للتفكير بالثواني",120,"زمن التفكير في الإجابة لكل سؤال",null,null,1,"2020-08-01","10:20:21","10:20:32","00:00:11","أحمد5","خامسة","تربية اسلامية",5,1,4,0.2,null,null,"45ش","أحمد1","خامسة","تربية اسلامية",null,null,null,null,null,null,5]
[2,"الفاروق - شهيد المحراب هو عمر بن الخطاب رضي الله عنه","لا","نعم",null,null,2,{"$f":"OFFSET(B4,0,G4)","v":"نعم"},null,null,"نص دعائي يبين ملكية البرنامج","ثانوية بامطرف للبنين بالشحر","سيظهر النص باللون الأحمرللطالب أثناء الاختبار",null,null,2,"2020-08-01","16:24:54","16:25:12","00:00:18","أحمد5","خامسة","تربية اسلامية",5,5,0,1,null,null,"12ي","أحمد2","خامسة","تربية اسلامية",null,null,null,null,null,null,10]
[3,"من هو ذو النورين ؟","الزبير بن العوام","عثمان بن عفان","عبدالرحمن بن عوف","أبو عبيدة عامر بن الجراح",2,"عثمان بن عفان",null,null,"عدد الأسئلة لكل طالب",5,{"$f":"IF(COUNT(A3:A100)<L5,\"الرقم الذي ادخلته غير صحيح\",\"عدد الأسئلة لكل طالب\")","v":"عدد الأسئلة لكل طالب"},null,null,3,"2020-08-01","16:25:18","16:25:37","00:00:19","أحمد4","خامسة","تربية اسلامية",5,4,1,0.8,null,null,13,"أحمد3","خامسة","تربية اسلامية",null,null,null,null,null,null,12]
[4,"من هو فدائي الهجرة ؟","علي بن أبي طالب","عمر بن الخطاب","عثمان بن عفان","أبو بكر – عبد الله بن قحافة",1,"علي بن أبي طالب",null,null,"إظهار النتيجة للطالب","لا","هل تريد أن يعرف الطالب نتيجة كل سؤال ؟",null,null,4,"2020-08-01","20:10:01","20:17:16","00:07:15","أحمد7","خامسة","تربية اسلامية",5,3,1,0.6,null,null,14,"أحمد4","خامسة","تربية اسلامية"]
[5,"من هو حبر الأمة وترجمان القرآن ؟","أبو هريرة","سعد بن أبي وقاص","عبدالله بن عباس","عبدالله بن الزبير",3,"عبدالله بن عباس",null,null,"كلمة المرور لإخفاء الصفحة",123,"سيتم أخفاء هذه الصفحة بكلمة المرور",null,null,5,"2020-08-01","20:19:45","20:20:03","00:00:18","أحمد5","خامسة","تربية اسلامية",5,3,2,0.6,null,null,15,"أحمد5","خامسة","تربية اسلامية"]
[6,"من هي مرضعة النبي صلى الله عليه وسلم","حليمة السعدية","أم جميل","أم حرام","آمنة بنت وهب",1,"حليمة السعدية",null,null,null,null,null,null,null,6,"2020-08-01","20:23:13","20:23:32","00:00:19","أحمد5","خامسة","تربية اسلامية",5,2,3,0.4,null,null,16,"أحمد6","خامسة","تربية اسلامية"]
[7,"من هو أسد الله وسيد الشهداء ؟","العباس بن عبدالمطلب","الزبير بن العوام","عبدالله بن عمر","حمزة بن عبدالمطلب",4,"حمزة بن عبدالمطلب",null,null,null,null,null,null,null,7,"2020-08-01","20:23:40","20:24:08","00:00:28","أحمد8","خامسة","تربية اسلامية",5,5,0,1,null,null,17,"أحمد7","خامسة","تربية اسلامية"]
[8,"ما اسم الكتاب المقدس عند النصارى ؟","القرآن الكريم","الأنجيل","الزبور","صحف إبراهيم",2,"الأنجيل",null,null,"التعريف بالبرنامج :",null,null,null,null,8,"2020-08-01","20:24:43","20:25:02","00:00:19","أحمد7","خامسة","تربية اسلامية",5,0,5,0,null,null,"sda","أحمد8","خامسة","تربية اسلامية"]
[9,"من هي ذات النظاقين ؟","حفصة بنت عمر","أسماء بنت عميس","نسيبة بنت كعب الأنصارية","أسماء بنت أبي بكر",4,"أسماء بنت أبي بكر",null,1,"مواكبة للتطور الحاصل في مجال التكنولوجيا تم بحمد الله إطلاق هذا البرنامج التربوي",null,null,null,null,9,"2020-08-01","20:32:02","20:32:28","00:00:26","أحمد4","خامسة","تربية اسلامية",5,3,2,0.6,null,null,19,"أحمد9","خامسة","تربية اسلامية"]
[10,"من هو ِحبُ رسول الله ؟","خبيب بن عدي","عكرمة بن أبي جهل","عمرو بن العاص","زيد بن حارثة",4,"زيد بن حارثة",null,null,"الذي يساعد المعلم على إجراء اختبار لمادته بطريقة الكترونية .",null,null,null,null,10,"2020-08-02","05:18:48","05:19:36","00:00:48","أحمد8","خامسة","تربية اسلامية",5,5,0,1]
[11,"من هما ريحانتي الرسول ؟","جعفر بن أبي طالب","الحسن والحسين","بلال بن رباح",null,2,"الحسن والحسين",null,null,null,null,null,null,null,11,"2020-08-02","05:22:34","05:22:52","00:00:18","أحمد8","خامسة","تربية اسلامية",5,3,2,0.6]
[12,"من هو الذي ادعى النبوة في عهد الرسول صلى الله عليه وسلم ؟","أبولهب","أبوطالب","مسيلمة الكذاب",null,3,"مسيلمة الكذاب",null,2,"هذا البرنامج هو برنامج أكسل يعمل بنظام الفيجوال بيسك vba  لذلك لن يعمل على ",null,null,null,null,12,"2020-08-02","05:43:17","05:46:00","00:02:43","أحمد7","خامسة","تربية اسلامية",5,4,0,0.8]
[13,"في أي غزوة خالف الرماة أمر رسول الله ونزلوا من الجبل لجمع الغنائم ظنا منهم أن المعركة قد انتهت ؟","أحد","بدر","القادسية",null,1,"أحد",null,null,"أي حاسوب إلا بعد تثبيت وحدات الماكرو .",null,null,null,null,13,"2020-08-03","20:28:25","20:28:28","00:00:03","أحمد4","خامسة","تربية اسلامية",1,0,1,0]
[null,null,null,null,null,null,null,0]
[null,null,null,null,null,null,null,0,null,3,"يتكون البرنامج من ورقتين هما لوحة التحكم والاختبار :"]
[null,null,null,null,null,null,null,0,null,"*","الورقة الأولى (لوحة التحكم)  تكون مخفية عن الطالب لأنها تخص المعلم , فيستطيع "]
[null,null,null,null,null,null,null,0,null,null," المعلم منخلالها وضع أسئلة الاختبار وتحديد عدد الأسئلة لكل طالب وزمن الإجابة "]
[null,null,null,null,null,null,null,0,null,null,"وكتابة بيانات الطلاب وبعد ذلك يقوم بإخفاء هذه الصفحة بكلمة مرور ."]
[null,null,null,null,null,null,null,0,null,"*","الورقة الثانية (الاختبار) وهي تخص الطالب حيث يتلقى من خلالها الأسئلة وفق الشروط التي حددها "]
[null,null,null,null,null,null,null,0,null,null,"المعلم في لوحة التحكم , يفقد الطالب درجة السؤال في حالتين  :"]
[null,null,null,null,null,null,null,0,null,null,"1- الأولى عندما يجيب إجابة خاطئة ."]
[null,null,null,null,null,null,null,0,null,null,"2- الثانية عندما يجيب بعد انتهاء الوقت المحدد ."]
[null,null,null,null,null,null,null,0]
[null,null,null,null,null,null,null,0,null,4,"بعد إنهاء الطالب للإختبار يتم تسجيل نتيجته في قسم النتيجة من لوحة التحكم"]
[null,null,null,null,null,null,null,0]
[null,null,null,null,null,null,null,0,null,null,"برمجة وتصميم : الأستاذ أحمد الكسادي (أبوعيد) اليمن ـ حضرموت ـ الحامي"]
[null,null,null,null,null,null,null,0,null,null,"E-Mail : 8abo.eed8@gmail.com"]
[null,null,null,null,null,null,null,0,null,null,"WhatsApp : 00967733430434"]
[null,null,null,null,null,null,null,0]
[null,null,null,null,null,null,null,0]
[null,null,null,null,null,null,null,0]
[null,null,null,null,null,null,null,0]
[null,null,null,null,null,null,null,0]
[null,null,null,null,null,null,null,0]
[null,null,null,null,null,null,null,0]
[null,null,null,null,null,null,null,0]
[null,null,null,null,null,null,null,0]
[null,null,null,null,null,null,null,0]
[null,null,null,null,null,null,null,0]
[null,null,null,null,null,null,null,0]
[null,null,null,null,null,null,null,0]
[null,null,null,null,null,null,null,0]
[null,null,null,null,null,null,null,0]
[null,null,null,null,null,null,null,0]
[null,null,null,null,null,null,null,0]
[null,null,null,null,null,null,null,0]
[null,null,null,null,null,null,null,0]
[null,null,null,null,null,null,null,0]
[null,null,null,null,null,null,null,0]
[null,null,null,null,null,null,null,0]

{"sheet":"الاختبار","index":1,"n_rows":14,"n_cols":27,"rows_kept":14,"cut":false,"hidden":false,"merged":[[7,1,7,4],[11,2,13,3],[10,2,10,3]]}
[null,"زمن البداية","20:28:26","زمن النهاية",null,"المدة بالثواني",{"$f":"IF(E1=\"\",\"\",(E1-C1)*86400)","v":""},null,null,null,null,null,null,null,null,null,null,null,null,null,null,null,null,null,null,null,"الأول"]
[null,1,"اسم الطالب",{"$f":"IFERROR(INDIRECT(\"'لوحة التحكم'!AE\"&MATCH(B2,'لوحة التحكم'!AD1:AD11,0)),\"\")","v":""},null,null,null,null,null,null,{"$f":"VLOOKUP(C9,'لوحة التحكم'!$A$3:$G$17,7,0)","v":{"$error":"#N/A"}},null,null,null,null,null,null,null,null,null,null,null,null,null,null,null,"الثاني"]
[null,null,"الصف",{"$f":"IFERROR(INDIRECT(\"'لوحة التحكم'!AF\"&MATCH(B2,'لوحة التحكم'!AD1:AD11,0)),\"\")","v":""},null,null,null,null,null,null,null,null,null,null,null,null,null,null,null,null,null,null,null,null,null,null,"الثالث"]
[null,null,"المادة",{"$f":"IFERROR(INDIRECT(\"'لوحة التحكم'!AG\"&MATCH(B2,'لوحة التحكم'!AD1:AD11,0)),\"\")","v":""},null,null,null,null,null,null,null,null,null,null,null,null,null,null,null,null,null,null,null,null,null,null,"الرابع"]
[null,null,"الاجابات الصحيحة",0,null,null,null,null,null,null,null,null,null,null,null,null,null,null,null,null,null,null,null,null,null,null,"الخامس"]
[null,null,"الاجابات الخاطئة",1,null,null,null,null,null,null,null,null,null,null,null,null,null,null,null,null,null,null,null,null,null,null,"السادس"]
[null,{"$f":"IF(C9=0,\"\",\"السؤال رقم  : \"&D9)","v":""},null,null,{"$f":"IF(C9=0,\"\",\"الأسئلة المتبقية  : \"&'لوحة التحكم'!L5-D9+1)","v":""},null,null,null,null,null,null,null,null,null,null,null,null,null,null,null,null,null,null,null,null,null,"السابع"]
[null,{"$f":"IFERROR(INDIRECT(\"'لوحة التحكم'!B\"&C9),0)","v":0},null,null,null,null,null,null,null,null,null,null,null,null,null,null,null,null,null,null,null,null,null,null,null,null,"الثامن"]
[null,null,{"$f":"INDIRECT(\"'لوحة التحكم'!AL\"&D9)","v":0},2,null,null,null,null,null,null,null,null,null,null,null,null,null,null,null,null,null,null,null,null,null,null,"التاسع"]
[null,{"$f":"EXACT(D10,E10)","v":{"$error":"#REF!"}},"الإجابة",{"$f":"OFFSET(INDIRECT(\"'لوحة التحكم'!B\"&C9),0,INDIRECT(\"'لوحة التحكم'!G\"&C9))","v":{"$error":"#REF!"}},"عمر بن الخطاب",null,null,null,null,null,null,null,null,null,null,null,null,null,null,null,null,null,null,null,null,null,"أول ثانوي"]
[null,null,{"$f":"IF(C9=0,\"\",\"لديك \"&TEXT('لوحة التحكم'!L3/60,\"0.0\")&\" دقيقة للإجابة على كل سؤال\")","v":""},null,null,null,null,null,null,null,null,null,null,null,null,null,null,null,null,null,null,null,null,null,null,null,"ثاني ثانوي"]
[null,{"$f":"INDIRECT(\"'لوحة التحكم'!C\"&C9)","v":{"$error":"#REF!"}},{"$f":"'لوحة التحكم'!L4","v":"ثانوية بامطرف للبنين بالشحر"},null,{"$f":"INDIRECT(\"'لوحة التحكم'!D\"&C9)","v":{"$error":"#REF!"}},null,null,null,null,null,null,null,null,null,null,null,null,null,null,null,null,null,null,null,null,null,"ثالث ثانوي"]
[]
[null,{"$f":"INDIRECT(\"'لوحة التحكم'!E\"&C9)","v":{"$error":"#REF!"}},null,null,{"$f":"INDIRECT(\"'لوحة التحكم'!F\"&C9)","v":{"$error":"#REF!"}}]